bitfinex-derivatives/quotes_SOLF0:USTF0_20251210
["timestamp","ask_amount","ask_price","bid_price","bid_amount"]
[1765392078876,163.0527,137.95,137.83,104.753]
[1765392079061,101.4658,137.99,137.87,104.7238]
[1765392079264,0.04792225,137.94,137.92,0.04684015]
[1765392079460,101.4986,137.94,137.83,166.3333]
[1765392079661,101.4623,137.99,137.9,3.18]
[1765392080065,101.4794,137.97,137.9,3.18]
[1765392080267,101.4914,137.95,137.85,3.18]
[1765392080465,0.04666311,137.91,137.89,0.05344044]
[1765392080869,0.04666311,137.91,137.89,3.23344044]
[1765392081068,101.455,138.0,137.9,3.18]
[1765392081469,120.23867167,138.03,137.92,104.6865]
[1765392081768,61.58,138.03,137.93,65.18]
[1765392082073,0.05063577,137.99,137.98,3.18]
[1765392082271,0.0558284,138.0,137.98,3.18]
[1765392082471,61.6,138.06,137.98,3.18]
[1765392082863,101.4176,138.05,137.98,3.18]
[1765392083078,101.4396,138.02,137.94,3.18]
[1765392083576,0.0479605,137.99,137.97,3.23458201]
[1765392083774,0.0479605,137.99,137.97,0.05458201]
[1765392084077,101.5105605,137.99,137.92,3.18]
[1765392084275,0.0479605,137.99,137.92,3.18]
[1765392084977,0.0479605,137.99,137.95,3.18]
[1765392085172,0.05502981,137.98,137.96,3.22826093]
[1765392085375,0.04658778,137.98,137.96,0.04731603]
[1765392085575,101.4914,137.95,137.87,3.18]
[1765392085873,101.5291,137.9,137.83,3.18]
[1765392086469,61.6,137.94,137.83,3.18]
[1765392086470,0.04730789,137.88,137.85,0.05395874]
[1765392086674,101.4757,137.97,137.86,3.18]
[1765392087078,101.4757,137.97,137.85,101.5586]
[1765392087079,101.5351,137.89,137.8,3.18]
[1765392087279,101.5425,137.88,137.8,3.18]
[1765392087671,0.04669895,137.85,137.83,0.05208813]
[1765392088284,120.31597167,137.92,137.83,3.23208813]
[1765392088482,101.5135,137.92,137.83,3.23208813]
[1765392088680,163.1048,137.93,137.83,3.18]
[1765392088885,108.044,137.91,137.83,65.18]
[1765392089086,101.4888,137.95,137.84,3.18]
[1765392089289,101.4984,137.94,137.84,3.18]
[1765392089484,0.05508609,137.91,137.88,3.23568989]
[1765392090382,101.5306,137.9,137.88,0.05568989]
[1765392090681,101.5278,137.9,137.88,0.05568989]
[1765392090881,101.5278,137.9,137.76,8.15481]
[1765392090882,101.5515,137.87,137.76,8.15481]
[1765392091081,101.5545,137.86,137.77,3.18]
[1765392091383,101.521,137.91,137.8,3.18]
[1765392091584,101.513,137.92,137.8,3.18]
[1765392091789,0.05339138,137.87,137.85,0.04648525]
[1765392091982,0.05000391,137.87,137.85,0.04648525]
[1765392093108,0.05000391,137.87,137.77,101.6166]
[1765392093109,101.5767,137.83,137.76,4.80211]
[1765392093387,101.6428,137.74,137.72,3.42854486]
[1765392093578,101.6212,137.77,137.72,3.42854486]
[1765392093888,101.6253,137.77,137.72,3.42854486]
[1765392094078,101.6114,137.79,137.72,6.67854486]
[1765392094276,101.67496231,137.77,137.74,0.05039244]
[1765392094481,101.6441,137.74,137.72,4.486e-05]
[1765392094686,120.44107167,137.75,137.55,3.25]
[1765392094687,6.5389,137.64,137.55,3.25]
[1765392094876,101.7285,137.63,137.55,3.25]
[1765392095081,101.749,137.6,137.51,3.25]
[1765392095288,108.2991,137.59,137.51,3.25]
[1765392095588,0.05022301,137.56,137.54,0.05267307]
[1765392095773,101.82892301,137.56,137.48,1.26501754]
[1765392095977,101.82892301,137.56,137.4,3.25]
[1765392095978,101.8156,137.51,137.4,3.25]
[1765392096173,101.8276,137.49,137.41,3.25]
[1765392096383,101.8158,137.51,137.41,3.25]
[1765392096702,101.8473,137.47,137.39,62.0]
[1765392096984,0.04891428,137.44,137.42,3.30169744]
[1765392097175,0.04891428,137.44,137.36,167.03362242]
[1765392097176,101.8618,137.45,137.36,4.73984456]
[1765392097383,101.8816,137.42,137.31,3.25]
[1765392097582,101.895,137.4,137.31,3.25]
[1765392097884,101.9071,137.39,137.31,3.25]
[1765392098182,6.5488,137.44,137.31,3.25]
[1765392098183,101.8684,137.44,137.31,101.9581]
[1765392098401,101.8684,137.44,137.34,0.05392503]
[1765392098577,101.8643,137.45,137.34,0.05392503]
[1765392098884,101.8556,137.46,137.34,101.9356]
[1765392099089,101.8653,137.44,137.33,101.9424]
[1765392099292,101.8556,137.46,137.34,101.9351]
[1765392099481,203.82945975,137.41,137.39,0.00333189]
[1765392099680,203.82945975,137.41,137.28,101.9782]
[1765392099681,61.7,137.42,137.31,101.9572]
[1765392099879,101.8156,137.51,137.35,101.9277]
[1765392100083,101.8156,137.51,137.4,3.25]
[1765392100288,61.7,137.55,137.39,101.8983]
[1765392100289,203.528,137.58,137.46,3.25]
[1765392100596,101.7317,137.62,137.51,3.25]
[1765392100890,0.04710343,137.53,137.51,3.25]
[1765392101092,101.7422,137.61,137.5,3.25]
[1765392101291,101.7317,137.62,137.51,3.29733657]
[1765392101482,120.55147167,137.6,137.47,105.0876]
[1765392101682,101.7655,137.58,137.49,3.25]
[1765392101877,101.7196,137.64,137.55,3.25]
[1765392102292,101.79541755,137.61,137.5,3.25]
[1765392102490,101.7591,137.59,137.46,101.8467]
[1765392102686,101.7591,137.59,137.44,68.2683]
[1765392102687,163.4676,137.63,137.51,101.8089]
[1765392102994,101.7645,137.58,137.46,105.0956]
[1765392103194,101.7911,137.54,137.41,105.134]
[1765392103388,101.7639,137.58,137.4,101.893]
[1765392103389,80.54247167,137.57,137.46,105.14268966]
[1765392103689,61.74,137.57,137.46,105.0956]
[1765392103892,101.7496,137.6,137.48,101.8306]
[1765392104093,101.7826,137.56,137.46,61.74]
[1765392104285,120.57557167,137.57,137.41,203.7683]
[1765392104286,101.8012,137.53,137.41,203.7683]
[1765392104484,101.8536,137.46,137.4,1.65756]
[1765392104785,61.74,137.48,137.4,1.65756]
[1765392105179,61.74,137.48,137.4,106.79816]
[1765392105378,61.76,137.52,137.41,105.1316]
[1765392105584,101.89071614,137.48,137.45,0.04593205]
[1765392105788,0.05341614,137.48,137.45,0.04593205]
[1765392105985,101.89131614,137.48,137.45,0.04593205]
[1765392106385,101.8472,137.47,137.4,1.65756]
[1765392106586,101.7931,137.54,137.43,105.1152]
[1765392106796,101.7861,137.55,137.45,3.25]
[1765392106996,108.3215,137.56,137.45,111.6545]
[1765392107190,101.8022,137.53,137.45,3.25]
[1765392107496,101.86078296,137.52,137.41,61.76]
[1765392107790,0.04800323,137.48,137.41,3.25]
[1765392108183,0.04800323,137.48,137.43,105.1184]
[1765392108496,0.04800323,137.48,137.45,3.25]
[1765392108993,0.04800323,137.48,137.4,1.65756]
[1765392109200,0.04800323,137.48,137.4,4.90756]
[1765392109492,101.8528,137.46,137.4,1.65756]
[1765392109712,0.04951524,137.44,137.4,1.65756]
[1765392109891,0.04951524,137.44,137.41,3.25]
[1765392110081,0.04951524,137.44,137.4,1.65756]
[1765392110586,101.7942,137.54,137.42,3.25]
[1765392110787,120.58127167,137.56,137.45,105.1041]
[1765392110989,101.7639,137.58,137.46,105.0965]
[1765392111194,163.5367,137.59,137.49,105.0774]
[1765392111195,61.78,137.59,137.49,105.0774]
[1765392111497,61.78,137.59,137.51,3.25]
[1765392111689,0.0491009,137.56,137.54,3.29981628]
[1765392111995,0.0526971,137.56,137.54,3.29981628]
[1765392112297,101.732,137.62,137.54,3.29981628]
[1765392112495,101.732,137.62,137.54,3.25]
[1765392112798,101.7245,137.63,137.54,3.25]
[1765392113090,0.05543838,137.6,137.58,3.25]
[1765392113290,0.04785325,137.6,137.58,3.30558474]
[1765392113598,101.6602,137.72,137.6,3.25]
[1765392113793,101.6455,137.74,137.62,3.25]
[1765392114294,101.6883,137.68,137.57,65.25]
[1765392114598,101.6883,137.68,137.54,101.7873]
[1765392114599,0.05225096,137.64,137.61,3.29677028]
[1765392114792,0.05225096,137.64,137.61,0.04677028]
[1765392115098,0.05225096,137.64,137.61,3.29677028]
[1765392115306,0.05225096,137.64,137.61,0.04677028]
[1765392115486,101.77025096,137.64,137.61,0.04677028]
[1765392115691,0.05225096,137.64,137.61,0.04677028]
[1765392116194,0.05225096,137.64,137.61,3.29677028]
[1765392116699,101.681,137.69,137.62,3.25]
[1765392116893,108.2168,137.69,137.62,3.25]
[1765392117098,101.7052,137.66,137.62,3.25]
[1765392117394,108.2485,137.65,137.55,3.25]
[1765392117593,0.05073346,137.61,137.59,3.29903788]
[1765392117992,0.05073346,137.61,137.59,0.04903788]
[1765392118496,101.6799,137.69,137.59,0.04903788]
[1765392118497,101.6381,137.75,137.63,104.9739]
[1765392118702,101.6554,137.73,137.64,3.25]
[1765392118894,101.6683,137.71,137.64,3.25]
[1765392119091,101.6381,137.75,137.64,3.25]
[1765392119402,0.0020798,137.71,137.68,3.30049713]
[1765392119593,101.6021,137.8,137.69,3.25]
[1765392120195,101.5919,137.81,137.7,3.25]
[1765392120390,101.5695,137.84,137.73,3.25]
[1765392120591,0.04631888,137.8,137.77,3.29596477]
[1765392121109,101.5401,137.88,137.77,3.29596477]
[1765392121293,101.5281,137.9,137.79,3.25]
[1765392121493,101.5045,137.93,137.83,3.25]
[1765392121689,101.5196,137.91,137.83,65.25]
[1765392121898,101.5484,137.87,137.78,3.25]
[1765392122092,101.5292,137.9,137.75,101.6285]
[1765392122093,0.05382781,137.84,137.81,0.0525337]
[1765392122297,0.05476339,137.84,137.81,3.30443843]
[1765392122799,0.05476339,137.84,137.81,0.05443843]
[1765392123002,0.05476339,137.84,137.81,3.30443843]
[1765392123796,0.05476339,137.84,137.81,0.05443843]
[1765392123993,0.00476339,137.84,137.81,3.39443843]
[1765392124198,101.5131,137.92,137.81,3.39443843]
[1765392124199,101.5131,137.92,137.81,1.51443843]
[1765392124402,101.5131,137.92,137.76,163.3851]
[1765392124403,101.5418,137.88,137.82,3.34]
[1765392124598,101.5324,137.89,137.82,3.34]
[1765392124906,6.5256,137.92,137.84,3.34]
[1765392125113,0.04901017,137.89,137.87,3.39239457]
[1765392125307,0.05079248,137.89,137.87,3.39239457]
[1765392125506,202.9754,137.96,137.87,4.85239457]
[1765392125507,6.5238,137.96,137.87,4.85239457]
[1765392125701,6.5238,137.96,137.88,3.34]
[1765392126103,108.0053,137.96,137.88,3.34]
[1765392126409,101.4533,138.0,137.9,3.34]
[1765392126612,101.4533,138.0,137.87,3.34]
[1765392126613,101.4746,137.97,137.87,3.34]
[1765392126806,0.04806499,137.96,137.89,104.872]
[1765392127005,3.47372242,138.01,137.92,3.34]
[1765392127304,3.47372242,138.01,137.95,3.34]
[1765392127507,3.47372242,138.01,137.96,3.34]
[1765392127811,3.47372242,138.01,137.92,65.06]
[1765392128110,0.05061885,137.98,137.95,3.39553427]
[1765392128706,101.4768,137.97,137.85,3.34]
[1765392128911,101.5203,137.91,137.85,3.34]
[1765392129218,108.0377,137.92,137.85,3.34]
[1765392129615,108.0483,137.91,137.85,3.34]
[1765392129913,101.58572332,137.89,137.87,0.05571226]
[1765392130109,0.04912332,137.89,137.87,0.05571226]
[1765392131113,101.5482,137.87,137.77,61.7]
[1765392131315,108.0856,137.86,137.77,64.91]
[1765392131511,101.5712,137.84,137.77,64.91]
[1765392131700,101.5649,137.85,137.69,101.6764]
[1765392131701,101.5842,137.82,137.72,3.21]
[1765392131906,108.1231,137.81,137.72,3.21]
[1765392132107,0.05049677,137.78,137.75,0.05026113]
[1765392132609,101.5734,137.84,137.75,3.26026113]
[1765392132809,101.5692,137.84,137.75,3.21]
[1765392133204,134.39791741,137.85,137.75,3.21]
[1765392133406,101.5207,137.91,137.79,101.6]
[1765392133601,134.33881741,137.93,137.84,0.05395741]
[1765392133602,0.05370532,137.86,137.84,0.05395741]
[1765392133806,0.04948069,137.86,137.84,0.0527196]
[1765392135306,134.31641741,137.96,137.85,3.21]
[1765392135614,101.4958,137.94,137.85,3.21]
[1765392136217,6.525,137.94,137.85,3.21]
[1765392136418,0.05559709,137.91,137.88,0.04646573]
[1765392136820,0.05559709,137.91,137.88,3.25646573]
[1765392137315,101.4827,137.96,137.88,3.25646573]
[1765392137618,101.4892,137.95,137.86,61.68]
[1765392137815,101.4892,137.95,137.86,64.89]
[1765392137816,6.5246,137.95,137.86,64.89]
[1765392138124,0.05258746,137.92,137.9,3.21]
[1765392138319,101.56108927,137.92,137.9,0.04955501]
[1765392138513,101.5202,137.91,137.84,3.21]
[1765392138815,101.5278,137.9,137.79,104.8152]
[1765392139118,101.5129,137.92,137.81,104.8004]
[1765392139308,101.5129,137.92,137.82,3.21]
[1765392139510,0.04769193,137.88,137.86,0.05207292]
[1765392139721,0.04625535,137.88,137.86,0.05207292]
[1765392139914,0.04625535,137.88,137.86,3.26207292]
[1765392140116,61.68,137.95,137.86,111.34287292]
[1765392140322,163.1718,137.95,137.86,3.21]
[1765392140815,101.5045,137.93,137.83,61.66]
[1765392141328,0.05062796,137.89,137.87,3.26156694]
[1765392141515,0.05581857,137.89,137.87,3.26156694]
[1765392141711,61.68,137.95,137.87,3.26156694]
[1765392141907,101.4665,137.98,137.87,104.80516694]
[1765392142114,101.474,137.97,137.87,3.21]
[1765392142421,6.5233,137.97,137.88,104.7491]
[1765392142611,0.05084699,137.94,137.91,3.26037525]
[1765392142924,0.05084699,137.94,137.91,9.78607525]
[1765392143235,0.05084699,137.94,137.91,0.05037525]
[1765392143518,101.5103,137.92,137.82,6.5303]
[1765392143723,134.33161741,137.94,137.83,101.5753]
[1765392143923,101.4924,137.95,137.84,3.21]
[1765392144127,6.5257,137.92,137.85,6.5286]
[1765392144523,0.05478693,137.9,137.87,0.04977464]
[1765392146823,101.5417,137.88,137.81,61.66]
[1765392147024,101.5278,137.9,137.79,101.6057]
[1765392147329,6.5275,137.88,137.8,6.5311]
[1765392147624,101.5399,137.88,137.79,3.21]
[1765392147813,101.5399,137.88,137.82,0.05569887]
[1765392148020,0.05102442,137.85,137.82,0.05569887]
[1765392148424,0.00102442,137.85,137.82,3.26569887]
[1765392148620,101.5261,137.9,137.82,3.26569887]
[1765392148826,6.5277,137.88,137.8,6.531]
[1765392149128,6.5277,137.88,137.79,104.8128]
[1765392149325,6.5282,137.87,137.79,9.7415]
[1765392149533,0.04882207,137.84,137.82,0.05131481]
[1765392151119,163.1485,137.95,137.82,3.26131481]
[1765392151323,134.34631741,137.92,137.82,3.21]
[1765392151524,6.5268,137.9,137.82,3.21]
[1765392151722,163.1485,137.95,137.82,104.79]
[1765392151938,163.1485,137.95,137.83,3.21]
[1765392152122,0.04889855,137.9,137.88,0.04938799]
[1765392152324,0.04653093,137.9,137.88,0.04938799]
[1765392153025,0.04653093,137.9,137.82,104.7905]
[1765392153226,6.5252,137.93,137.84,3.21]
[1765392153432,101.4962,137.94,137.84,3.21]
[1765392154134,0.04661305,137.9,137.88,0.04958512]
[1765392154738,32.83301741,137.98,137.89,3.03]
[1765392154929,104.92002242,138.01,137.91,3.03]
[1765392155332,5.52182193,138.0,137.91,3.03]
[1765392155530,104.92002242,138.01,137.91,3.03]
[1765392155833,0.05366227,137.97,137.95,3.078774]
[1765392156541,0.05366227,137.97,137.95,0.048774]
[1765392158339,5.54759775,137.96,137.95,0.048774]
[1765392159253,5.55104649,137.96,137.95,0.048774]
[1765392159431,0.05366227,137.97,137.95,0.048774]
[1765392159739,6.57726227,137.97,137.95,0.048774]
[1765392159933,5.55081533,137.96,137.95,0.048774]
[1765392160123,5.55081533,137.96,137.89,3.03]
[1765392160325,5.55081533,137.95,137.89,9.5568]
[1765392160527,101.4741,137.97,137.89,3.03]
[1765392160736,5.55812619,137.96,137.89,3.03]
[1765392160943,12.06007385,137.95,137.89,3.03]
[1765392161243,5.6119075,137.94,137.91,3.08522257]
[1765392161541,5.55812619,137.93,137.91,3.08522257]
[1765392161731,5.56755999,137.92,137.91,0.05522257]
[1765392162443,101.518,137.91,137.83,3.03]
[1765392162737,6.5305,137.82,137.75,6.5334]
[1765392162941,5.40471879,137.81,137.74,3.03]
[1765392163235,6.5329,137.77,137.73,3.87948]
[1765392163437,107.08255989,137.76,137.74,0.00337489]
[1765392163637,107.08255989,137.76,137.73,3.87948]
[1765392163638,5.40471879,137.75,137.73,3.87948]
[1765392163841,5.40471879,137.74,137.73,3.87948]
[1765392165632,5.40471879,137.74,137.72,0.05427542]
[1765392165831,5.40471879,137.73,137.67,143.50675401]
[1765392166034,6.5359,137.71,137.63,6.5392]
[1765392166328,101.6804,137.69,137.59,101.75]
[1765392166548,5.40471879,137.68,137.59,101.75]
[1765392166844,0.04583852,137.65,137.63,3.03]
[1765392167035,0.05330078,137.65,137.63,3.08549888]
[1765392167428,5.39193277,137.7,137.67,104.7206]
[1765392167740,6.6927535,137.76,137.66,101.7008]
[1765392167945,6.6927535,137.78,137.71,101.6641]
[1765392168240,101.5993,137.8,137.71,3.03]
[1765392168539,0.05234459,137.77,137.74,0.04954514]
[1765392169243,101.6307,137.76,137.66,3.03]
[1765392169540,6.5342,137.74,137.66,3.03]
[1765392169735,101.658,137.72,137.61,166.4255]
[1765392170137,0.05494993,137.68,137.65,0.04817885]
[1765392171655,101.74224993,137.68,137.65,0.04817885]
[1765392171945,0.05494993,137.68,137.65,0.04817885]
[1765392172352,6.59234993,137.68,137.65,0.04817885]
[1765392172533,0.05494993,137.68,137.65,0.04817885]
[1765392173641,101.74504993,137.68,137.65,0.04817885]
[1765392173840,101.6967,137.67,137.57,3.03]
[1765392174039,101.6901,137.68,137.57,104.7969]
[1765392174737,134.49491741,137.72,137.62,3.03]
[1765392174938,0.04576516,137.68,137.66,0.04919447]
[1765392175746,101.6148,137.78,137.68,3.03]
[1765392175949,101.616,137.78,137.68,3.03]
[1765392176140,101.6282,137.76,137.68,3.03]
[1765392176849,0.04662622,137.73,137.71,0.0470737]
[1765392177049,101.69692622,137.73,137.63,3.03]
[1765392177236,101.6487,137.74,137.64,3.03]
[1765392177436,101.6362,137.75,137.64,3.03]
[1765392177845,101.6736,137.7,137.61,6.5399]
[1765392178051,0.0469553,137.67,137.64,0.04812435]
[1765392178351,0.0469553,137.67,137.64,3.07812435]
[1765392179445,101.6137,137.78,137.64,3.07812435]
[1765392179641,101.6137,137.78,137.64,3.03]
[1765392179642,101.667,137.71,137.64,3.03]
[1765392180043,6.5368,137.69,137.64,3.03]
[1765392180452,0.0541241,137.68,137.65,0.05561993]
[1765392180646,163.3522,137.76,137.65,3.08561993]
[1765392180854,61.72,137.76,137.66,3.03]
[1765392181146,101.6444,137.74,137.66,3.03]
[1765392181345,101.6444,137.74,137.64,3.03]
[1765392181540,101.6383,137.75,137.64,3.03]
[1765392181853,0.05516337,137.71,137.68,0.0467768]
[1765392182050,101.6241,137.77,137.68,0.0467768]
[1765392182051,203.197,137.81,137.68,3.0767768]
[1765392182354,101.6001,137.8,137.69,3.03]
[1765392182543,6.532,137.79,137.7,3.03]
[1765392183151,6.5325,137.78,137.7,3.03]
[1765392183453,0.04966423,137.76,137.73,0.05074215]
[1765392183656,0.04966423,137.76,137.73,3.08074215]
[1765392183958,61.72,137.83,137.74,3.08]
[1765392184152,101.5557,137.86,137.74,3.08]
[1765392184153,6.5287,137.86,137.77,6.5324]
[1765392184357,6.5287,137.86,137.77,9.6124]
[1765392184855,0.05445319,137.83,137.8,0.04905887]
[1765392185359,101.6072,137.79,137.72,3.08]
[1765392185750,101.5987,137.8,137.72,3.08]
[1765392185945,6.5315,137.8,137.72,3.08]
[1765392186259,0.04694463,137.77,137.75,3.12954698]
[1765392186448,61.72,137.85,137.75,3.08]
[1765392186757,101.5928,137.81,137.71,3.08]
[1765392187361,0.04609393,137.77,137.76,3.08]
[1765392187655,0.05294681,137.78,137.76,3.08]
[1765392187956,120.40569965,137.89,137.77,3.08]
[1765392188161,101.5405,137.88,137.77,3.08]
[1765392188359,6.5287,137.86,137.8,3.08]
[1765392188659,18.87019965,137.89,137.8,3.08]
[1765392188846,0.05442656,137.86,137.83,0.04701201]
[1765392190248,6.5293,137.85,137.83,0.04701201]
[1765392190961,0.05442656,137.86,137.83,0.04701201]
[1765392191154,0.05442656,137.86,137.83,3.23701201]
[1765392191858,101.4959,137.94,137.83,3.23701201]
[1765392192058,6.5256,137.92,137.83,9.7196]
[1765392192258,101.5046,137.93,137.83,9.7196]
[1765392192555,101.5183,137.91,137.83,3.19]
[1765392192857,0.04878644,137.88,137.86,3.2409346]
[1765392193057,101.474,137.97,137.86,3.2409346]
[1765392193259,101.474,137.97,137.86,3.19]
[1765392193455,101.4681,137.98,137.89,3.19]
[1765392193966,101.4681,137.98,137.92,0.05008553]
[1765392194156,101.459,137.99,137.92,3.24008553]
[1765392194759,104.92002242,138.01,137.92,3.24008553]
[1765392194954,3.47372242,138.01,137.95,3.24089344]
[1765392195160,6.5222,138.0,137.95,3.24089344]
[1765392195364,3.47372242,138.01,137.95,3.24089344]
[1765392197353,101.4558,138.0,137.95,0.05089344]
[1765392197771,6.5246,137.95,137.88,3.19]
[1765392198573,6.525,137.94,137.88,3.19]
[1765392198766,0.04957294,137.92,137.9,0.0514505]
[1765392199872,101.56057294,137.92,137.9,0.0514505]
[1765392200462,6.57547294,137.92,137.9,0.0514505]
[1765392200670,0.04957294,137.92,137.9,0.0514505]
[1765392201374,0.04957294,137.92,137.9,3.2414505]
[1765392201564,0.04957294,137.92,137.9,0.0514505]
[1765392201962,0.04957294,137.92,137.9,3.2414505]
[1765392202175,104.91872242,138.01,137.91,3.19]
[1765392202671,104.92092242,138.01,137.93,3.19]
[1765392202977,101.4588,137.99,137.89,3.19]
[1765392203179,6.523,137.98,137.93,3.24354045]
[1765392203368,101.4739,137.97,137.93,0.05354045]
[1765392203568,202.9642,137.96,137.93,0.05354045]
[1765392203762,101.5106,137.92,137.85,3.19]
[1765392203965,101.5188,137.91,137.85,3.19]
[1765392204270,6.5282,137.87,137.82,61.64]
[1765392204570,6.5282,137.87,137.83,3.19]
[1765392204768,108.54142862,137.9,137.84,0.04915803]
[1765392205075,0.05073545,137.86,137.84,0.04915803]
[1765392205279,7.06416407,137.86,137.84,0.04915803]
[1765392205866,6.57953545,137.86,137.84,0.04915803]
[1765392206982,101.5828,137.83,137.76,142.51631969]
[1765392207300,101.572,137.84,137.76,142.51631969]
[1765392207478,61.64,137.85,137.76,247.33091969]
[1765392207789,61.64,137.85,137.77,3.19]
[1765392207990,0.04675413,137.82,137.79,0.04780102]
[1765392208593,6.57735413,137.82,137.79,0.04780102]
[1765392208890,0.04675413,137.82,137.79,0.04780102]
[1765392209291,0.04675413,137.82,137.79,3.23780102]
[1765392210293,0.04675413,137.82,137.79,0.04780102]
[1765392210593,6.57745413,137.82,137.79,0.04780102]
[1765392210790,0.04675413,137.82,137.79,0.04780102]
[1765392210990,0.04675413,137.82,137.79,3.23780102]
[1765392211187,101.5488,137.87,137.79,3.23780102]
[1765392211389,101.54,137.88,137.79,3.19]
[1765392212089,0.0505272,137.85,137.82,3.2451197]
[1765392213690,101.4741,137.97,137.86,101.5509]
[1765392213896,101.4741,137.97,137.87,3.19]
[1765392213897,101.4749,137.97,137.87,3.19]
[1765392214192,101.4749,137.97,137.85,101.5566]
[1765392214193,101.4678,137.98,137.88,9.8073]
[1765392214395,101.4807,137.96,137.88,3.28]
[1765392214789,6.5254,137.93,137.91,0.04811893]
[1765392215397,101.4518,138.0,137.91,3.32811893]
[1765392215595,101.4696,137.98,137.94,0.05572401]
[1765392215795,101.4887,137.95,137.87,3.28]
[1765392216299,6.5251,137.93,137.87,3.28]
[1765392216597,101.4887,137.95,137.87,3.28]
[1765392216798,0.05296889,137.92,137.9,0.05145661]
[1765392217200,0.05296889,137.92,137.9,3.33145661]
[1765392217501,61.66,137.98,137.9,3.33145661]
[1765392218088,123.75697392,138.01,137.9,3.33145661]
[1765392218300,101.4519,138.0,137.91,9.8058]
[1765392218497,101.4519,138.0,137.94,0.05444128]
[1765392218900,6.5231,137.98,137.94,0.05444128]
[1765392219397,101.4748,137.97,137.94,0.05444128]
[1765392219798,6.5264,137.91,137.84,3.28]
[1765392220508,6.5254,137.93,137.86,3.28]
[1765392220802,0.04687829,137.91,137.88,0.04987617]
[1765392221001,0.04687829,137.91,137.88,3.32987617]
[1765392222201,0.04687829,137.91,137.88,0.04987617]
[1765392223905,6.5265,137.9,137.88,0.04987617]
[1765392224407,101.5268,137.9,137.8,65.28]
[1765392224602,101.5355,137.89,137.8,3.28]
[1765392225307,6.5286,137.86,137.8,9.8111]
[1765392225607,6.57955073,137.86,137.83,0.04574615]
[1765392226007,0.05095073,137.86,137.83,3.32574615]
[1765392226206,0.05095073,137.86,137.83,0.04574615]
[1765392227207,0.05095073,137.86,137.83,3.32574615]
[1765392228098,0.05095073,137.86,137.85,3.28]
[1765392229308,0.05095073,137.86,137.83,3.32574615]
[1765392230203,0.05095073,137.86,137.84,3.28]
[1765392230409,7.01505497,137.94,137.85,3.28]
[1765392230613,6.5258,137.92,137.85,9.8086]
[1765392230805,6.5258,137.92,137.85,3.28]
[1765392231203,7.01505497,137.94,137.85,3.28]
[1765392231204,101.503,137.93,137.85,3.28]
[1765392231404,0.04798583,137.9,137.88,0.04856418]
[1765392231904,0.04798583,137.9,137.88,3.32856418]
[1765392232112,0.04798583,137.9,137.88,0.04856418]
[1765392233012,0.04798583,137.9,137.88,3.32856418]
[1765392235008,0.04798583,137.9,137.89,3.28]
[1765392235407,0.04798583,137.9,137.88,0.04856418]
[1765392235907,6.57468583,137.9,137.88,0.04856418]
[1765392238013,0.04798583,137.9,137.88,0.04856418]
[1765392238513,13.5898408,137.9,137.88,0.04856418]
[1765392238716,101.5325,137.89,137.81,3.28]
[1765392239105,7.01505497,137.87,137.81,3.28]
[1765392239504,6.5296,137.84,137.77,71.4523]
[1765392239709,0.05202836,137.82,137.79,3.33259425]
[1765392240414,0.05202836,137.82,137.79,0.05259425]
[1765392240719,0.05202836,137.82,137.79,3.33259425]
[1765392240915,0.05202836,137.82,137.7,136.5105]
[1765392240916,101.607,137.79,137.71,3.28]
[1765392241106,113.84469706,137.77,137.67,3.28]
[1765392241307,101.6302,137.76,137.67,3.28]
[1765392242005,0.05282749,137.73,137.7,0.04585792]
[1765392243113,12.22099706,137.72,137.7,0.04585792]
[1765392243315,113.87929706,137.72,137.7,0.04585792]
[1765392243812,20.21629706,137.72,137.62,9.8197]